Workbook

Sheet Wybór języka

Sheet PL
A1: P&L (Asseco Poland S.A.) | B1: P&L (Asseco Poland S.A.) | C1: Q1 2019 | D1: Q4 2018 | E1: Q3 2018 | F1: Q2 2018 | G1: Q1 2018
C3: mln PLN | D3: mln PLN | E3: mln PLN | F3: mln PLN | G3: mln PLN
A5: Przychody ze sprzedaży | B5: Sales revenues | C5: 195.1 | D5: 251.5 | E5: 211 | F5: 225.4 | G5: 205.4
A6: Koszt własny sprzedaży | B6: Cost of sales | C6: -137.7 | D6: -170.8 | E6: -133.3 | F6: -147.5 | G6: -137
A7: Odpis (odwrócenie odpisu) z tytułu utraty wartości należności handlowych | B7: Write-off (reversal of write-off) of trade receivables | C7: 2.1 | D7: 0.2 | E7: -1.1 | F7: -2.4 | G7: 6.7
A9: Zysk brutto ze sprzedaży | B9: Gross profit on sales | C9: =SUM(C5:C7) -> 59.5 | D9: =SUM(D5:D7) -> 80.9 | E9: =SUM(E5:E7) -> 76.6 | F9: =SUM(F5:F7) -> 75.5 | G9: =SUM(G5:G7) -> 75.1
A11: Koszty sprzedaży | B11: Selling costs | C11: -10.9 | D11: -13.5 | E11: -10.7 | F11: -11.4 | G11: -10.8
A12: Koszty ogólnego zarządu | B12: General administrative expenses | C12: -18.9 | D12: -23.6 | E12: -18.9 | F12: -21 | G12: -18.5
A14: Zysk netto ze sprzedaży | B14: Net profit on sales | C14: =SUM(C9,C11:C12) -> 29.7 | D14: 43.8 | E14: 47 | F14: 43.1 | G14: 45.8
A16: Pozostałe przychody operacyjne | B16: Other operating income | C16: 0.2 | D16: 1 | E16: 0.8 | F16: 0.8 | G16: 0.8
A17: Pozostałe koszty operacyjne | B17: Other operating expenses | C17: -0.8 | D17: -0.2 | E17: -0.2 | F17: -0.8 | G17: -0.2
A18: Odpis (odwrócenie odpisu) z tytułu utraty wartości instrumentów finansowych | B18: Write-off (reversal of write-off) of financial instruments | D18: 0 | E18: 0 | F18: 0 | G18: 0
A20: Zysk z działalności operacyjnej | B20: Operating profit | C20: =SUM(C14,C16:C18) -> 29.1 | D20: =SUM(D14,D16:D18) -> 44.6 | E20: =SUM(E14,E16:E18) -> 47.6 | F20: =SUM(F14,F16:F18) -> 43.1 | G20: =SUM(G14,G16:G18) -> 46.4
A22: Działalność finansowa | B22: Financial activity | C22: 80.1 | D22: 6.4 | E22: 3.3 | F22: 7.3 | G22: 12
A24: Zysk brutto | B24: Pre-tax profit | C24: =SUM(C20,C22) -> 109.2 | D24: 51 | E24: 50.9 | F24: 50.4 | G24: 58.4
A26: Podatek dochodowy | B26: Corporate income tax | C26: -5.8 | D26: -10.1 | E26: -10.7 | F26: -10.3 | G26: -13.1
A28: Zysk netto z działalności kontynuawanej za okres sprawozdawczy | B28: Net profit for the reporting period from continued operations | C28: =SUM(C24,C26) -> 103.4 | D28: 40.9 | E28: 40.2 | F28: 40.1 | G28: 45.3
A30: Zysk netto z działalności zaniechanej za okres sprawozdawczy | B30: Net profit for the reporting period from discontinued operations | C30: 0 | D30: 0 | E30: 0 | F30: 0 | G30: 0
A32: Zysk netto za okres sprawozdawczy | B32: Net profit for the reporting period | C32: =SUM(C28,C30) -> 103.4 | D32: 40.9 | E32: =SUM(E28,E30) -> 40.2 | F32: 40.1 | G32: 45.3
A34: Zysk netto przypadający na jedną akcję (w złotych) z działalności kontynuowanej | B34: Earnings per share (in PLN) from continued operations:
A35: EPS | B35: EPS | C35: 1.25 | D35: 0.5 | E35: 0.48 | F35: 0.48 | G35: 0.55
A36: EPS rozwodniony | B36: Diluted EPS | C36: 1.25 | D36: 0.5 | E36: 0.48 | F36: 0.48 | G36: 0.55

Sheet BS
A1: BILANS ASSECO POLAND S.A. | B1: STATEMENT OF FINANCIAL POSITION OF ASSECO POLAND S.A. | C1: Q1 2019 | D1: Q4 2018 | E1: Q3 2018 | F1: Q2 2018 | G1: Q1 2018
C3: mln PLN | D3: mln PLN | E3: mln PLN | F3: mln PLN | G3: mln PLN
A7: Aktywa trwałe | B7: Non-current assets
A8: Rzeczowe aktywa trwałe | B8: Property, plant and equipment | C8: 268.1 | D8: 310.2 | E8: 312.2 | F8: 314.9 | G8: 316.7
A9: Wartości niematerialne | B9: Intangible assets | C9: 2218.2 | D9: 2213.2 | E9: 2208.5 | F9: 2210.5 | G9: 2213.4
A10: w tym wartość firmy z połączenia | B10: of which goodwill from mergers | C10: 1932.5 | D10: 1932.5 | E10: 1932.5 | F10: 1932.5 | G10: 1932.5
A11: Aktywa z tytułu prawa do użytkowania | B11: Right-to-use assets | C11: 99.9 | D11: 0 | E11: 0 | F11: 0 | G11: 0
A12: Nieruchomości inwestycyjne | B12: Investment property | C12: 0.4 | D12: 0.4 | E12: 0.4 | F12: 0.4 | G12: 0.4
A13: Inw. w jedn. zależnych i stowarzyszonych | B13: Inv. in subsidiaries and associates | C13: 2069.7 | D13: 2052.1 | E13: 2056.1 | F13: 2055 | G13: 2052.5
A14: Należności długoterminowe | B14: Long-term receivables | C14: 82 | D14: 82.7 | E14: 81.2 | F14: 85.5 | G14: 88.3
A15: Długoterminowe aktywa finansowe | B15: Long-term financial assets | C15: 31.4 | D15: 46.4 | E15: 14 | F15: 13.5 | G15: 37.1
A16: Długoterm. rozl. międzyokresowe | B16: Long-term prepayments and accr. inc. | C16: 5.6 | D16: 6 | E16: 5.9 | F16: 4.3 | G16: 1
C17: =SUM(C8:C9,C11:C16) -> 4775.3 | D17: =SUM(D8:D9,D11:D16) -> 4711 | E17: 4678.3 | F17: 4684.1 | G17: 4709.4
A18: Aktywa obrotowe | B18: Current assets
A19: Zapasy | B19: Inventories | C19: 4.3 | D19: 2.6 | E19: 4.7 | F19: 4.7 | G19: 2.8
A20: Należności z tytułu dostaw i usług | B20: Trade receivables | C20: 138 | D20: 173.7 | E20: 160.4 | F20: 187.3 | G20: 373.6
A21: Aktywa z tytułu umów z klientami | B21: Contract assets | C21: 144.9 | D21: 122.4 | E21: 151.7 | F21: 164.9 | G21: 0
A22: Należności z tyt. podatku dochodowego od osób prawnych | B22: Corporate income tax receivable | C22: 0 | D22: 0 | E22: 0.1 | F22: 0.1 | G22: 28.3
A23: Pozostałe należności | B23: Other receivables | C23: 89.3 | D23: 17.4 | E23: 27.3 | F23: 24.2 | G23: 25.3
A24: Pozostałe aktywa niefinansowe | B24: Other non-financial assets | C24: 1.8 | D24: 1.6 | E24: 3.8 | F24: 1.6 | G24: 1.8
A25: Aktywa finansowe | B25: Financial assets | C25: 1.4 | D25: 1.4 | E25: 23.8 | F25: 23.3 | G25: 5.7
A26: Rozliczenia międzyokresowe | B26: Prepayments and accrued income | C26: 24 | D26: 16.1 | E26: 16 | F26: 13.2 | G26: 14.7
A27: Środki pieniężne i depozyty krótkoterminowe | B27: Cash and short-term deposits | C27: 247.8 | D27: 264.7 | E27: 184.5 | F27: 147.8 | G27: 298.4
A28: Aktywa przeznaczone do sprzedaży | B28: Assets held for sale | C28: 3.5 | D28: 6 | E28: 6 | F28: 3.9 | G28: 3.9
C29: =SUM(C19:C28) -> 655 | D29: 605.9 | E29: 578.3 | F29: 571 | G29: 754.5
A32: SUMA AKTYWÓW | B32: TOTAL ASSETS | C32: =SUM(C17,C29) -> 5430.3 | D32: =SUM(D17,D29) -> 5316.9 | E32: 5256.6 | F32: 5255.1 | G32: 5463.9
A34: KAPITAŁ WŁASNY OGÓŁEM | B34: TOTAL EQUITY | C34: 5046 | D34: 4949.8 | E34: 4909 | F34: 4869 | G34: 5078.9
A36: Zobowiązania długoterminowe | B36: Non-current liabilities
A37: Długoterminowe oprocentowane kredyty bankowe, pożyczki, dłużne papiery wartościowe | B37: Long-term interest-bearing bank loans, borrowings and debt securities | C37: 0 | D37: 38.8 | E37: 42.5 | F37: 46.4 | G37: 59.9
A38: Dł. zob. z tyt. leasingu finansowego | B38: Long-term finance lease liabilities | C38: 76.1 | D38: 21.8 | E38: 27.7 | F38: 34.2 | G38: 38.8
A39: Długoterminowe zobowiązania finansowe | B39: Long-term financial liabilities | C39: 2.7 | D39: 2.2 | E39: 0 | F39: 1.2 | G39: 0
A40: Rezerwa z tytułu odr. podatku doch. | B40: Deferred income tax liabilities | C40: 29.5 | D40: 26.3 | E40: 28.2 | F40: 28 | G40: 25
A41: Długoterminowe zobowiązania z tytułu umów z klientami | B41: Long-term contract liabilities | C41: 8.3 | D41: 8.7 | E41: 6 | F41: 4.8 | G41: 0
A42: Długoterminowe pozostałe zobowiązania | B42: Other long-term liabilities | C42: 0.3 | D42: 0.5 | E42: 0.5 | F42: 0.1 | G42: 0.3
A43: Długoterminowe rezerwy | B43: Long-term provisions | C43: 9 | D43: 9.7 | E43: 12.5 | F43: 14.7 | G43: 17
A44: Długoterminowe rozliczenia międzyokresowe przychodów | B44: Long-term deferred income | C44: 33 | D44: 32.4 | E44: 31.9 | F44: 31.5 | G44: 37.1
C45: =SUM(C37:C44) -> 158.9 | D45: 140.4 | E45: 149.3 | F45: 160.9 | G45: 178.1
A46: Zobowiązania krótkoterminowe | B46: Current liabilities
A47: Oprocentowane kredyty bankowe, pożyczki, dłużne papiery wartościowe | B47: Interest-bearing bank loans, borrowings and debt securities | C47: 25.9 | D47: 15.2 | E47: 15.3 | F47: 15.4 | G47: 25.2
A48: Zob. z tyt. leasingu finansowego | B48: Finance lease liabilities | C48: 31.9 | D48: 23.6 | E48: 23 | F48: 23.1 | G48: 22
A49: Inne zobowiązania finansowe | B49: Other financial liabilities | C49: 2.2 | D49: 1 | E49: 1.1 | F49: 1.8 | G49: 0.1
A50: Zobowiązania z tytułu dostaw i usług | B50: Trade payables | C50: 66.9 | D50: 75.8 | E50: 66 | F50: 85.9 | G50: 70.4
A51: Krótkoterminowe zobowiązania z tytułu umów z klientami | B51: Current contract liabilities | C51: 23.5 | D51: 26.5 | E51: 20 | F51: 24.7 | G51: 0
A52: Zobowiązania budżetowe | B52: Liabilities to the state and local budgets | C52: 12.7 | D52: 15.6 | E52: 13 | F52: 14.6 | G52: 17.5
A53: Zobowiązania z tytułu podatku dochodowego od osób prawych | B53: Corporate income tax payable | C53: 10.3 | D53: 15.1 | E53: 8.4 | F53: 4.1 | G53: 0
A54: Pozostałe zobowiązania | B54: Other liabilities | C54: 2.9 | D54: 7 | E54: 9.7 | F54: 11.2 | G54: 9.9
A55: Rezerwy | B55: Provisions | C55: 10.3 | D55: 11.8 | E55: 10.4 | F55: 10.5 | G55: 10.7
A56: Rozliczenia międzyokresowe kosztów | B56: Deferred income | C56: 37.6 | D56: 33.8 | E56: 30.1 | F56: 32.5 | G56: 28
A57: Rozliczenia międzyokresowe przychodów | B57: Accruals | C57: 1.2 | D57: 1.3 | E57: 1.3 | F57: 1.4 | G57: 23.1
C58: =SUM(C47:C57) -> 225.4 | D58: 226.7 | E58: =SUM(E47:E57) -> 198.3 | F58: 225.2 | G58: 206.9
A60: SUMA ZOBOWIĄZAŃ | B60: TOTAL LIABILITIES | C60: =SUM(C45,C58) -> 384.3 | D60: =SUM(D45,D58) -> 367.1 | E60: 347.6 | F60: 386.1 | G60: 385
A62: SUMA PASYWÓW | B62: TOTAL EQUITY AND LIABILITIES | C62: =SUM(C34,C60) -> 5430.3 | D62: 5316.9 | E62: =SUM(E34,E60) -> 5256.6 | F62: 5255.1 | G62: 5463.9
C63: =C62-C32 -> 0 | D63: 0 | E63: 0 | F63: 0 | G63: 0

Sheet CF
A1: RACHUNEK PRZEPŁYWÓW PIENIĘŻNYCH ASSECO POLAND S.A. | B1: STATEMENT OF CASH FLOWS OF ASSECO POLAND S.A. | C1: Q1 2019 | D1: Q1 2018
C2: mln PLN | D2: mln PLN
A4: Przepływy środków pieniężnych z działalności operacyjnej | B4: Cash flows – operating activities
A5: Zysk brutto | B5: Pre-tax profit | C5: 109.2 | D5: 58.4
A6: Korekty o pozycje: | B6: Total adjustments: | C6: -71.7 | D6: -38.2
A7: Amortyzacja | B7: Depreciation and amortization | C7: 16.8 | D7: 13.5
A8: Zmiany stanu kapitału pracującego | B8: Changes in working capital | C8: -7.5 | D8: -37.8
A9: Przychody/koszty z tytułu odsetek | B9: Interest income/expenses | C9: 0.1 | D9: -0.4
A10: Zyski/straty z tytułu różnic kursowych | B10: Gain / loss on foreign exchange differences | C10: -2.7 | D10: 1
A11: Przychody z tytułu dywidend | B11: Dividend income | C11: -79.3 | D11: -6.4
A12: Strata ze sprzedaży akcji/udziałów w jednostkach powiązanych | B12: Loss on sales of share in subsidiaries | C12: 0 | D12: 0
A13: Pozostałe przychody/koszty finansowe | B13: Other financial (income)/ costs | C13: 0.8 | D13: -7.7
A14: Odpis aktualizujący wartości niematerialne | B14: Intangible assets impairment | C14: 0 | D14: 0
A15: Zyski/straty z działalności inwestycyjnej | B15: Gain / loss on investing activities | C15: 0 | D15: -0.4
A16: Pozostałe korekty zysku brutto | B16: Other pre-tax profit adjustments | C16: 0.1 | D16: 0
A17: Środki pieniężne netto wygenerowane z dział. operacyjnej | B17: Cash generated from operating activities | C17: 37.5 | D17: 20.2
A18: (Zapłacony podatek dochodowy) / Otrzymane zwroty podatku dochodowego | B18: (Corporate income tax paid) / Corporate income tax receipts | C18: -5.3 | D18: -7.9
A19: Środki pieniężne netto z działalności operacyjnej | B19: Net cash provided by (used in) operating activities | C19: 32.2 | D19: 12.3
A21: Przepływy środków pieniężnych z działalności inwestycyjnej | B21: Cash flows – investing activities
A22: Wpływy ze sprzedaży AT i WN [1] | B22: Disposal of tangible FA and IA [1] | C22: 3 | D22: 0.4
A23: Nabycie AT i WN [1] | B23: Acquisition of tangible FA and IA [1] | C23: -11.1 | D23: -6.3
A24: Wydatki z tytułu prowadzonych projektów rozwojowych | B24: Expenditures for development projects in progress | C24: -8.1 | D24: -2.4
A25: Wpływy ze sprzedaży/liwidacji inwestycji w jednostkach powiązanych | B25: Disposal of shares in related companies | C25: 0.4 | D25: 3.7
A26: Nabycie akcji/udziałów w jednostkach powiązanych | B26: Acquisition of shares in related companies | C26: -0.3 | D26: -15.3
A27: Nabycie aktywów finansowych | B27: Acquisition of financial assets | C27: 0 | D27: 0
A28: Wpływy ze sprzedaży aktywów finansowych P&L [2] | B28: Disposal of financial assets P&L [2] | C28: 0 | D28: 1.1
A29: Pożyczki spłacone | B29: Loans collected | C29: 0.4 | D29: 7.7
A30: Pożyczki udzielone | B30: Loans granted | C30: -1.9 | D30: -2.8
A31: Otrzymane odsetki | B31: Interest received | C31: 1.2 | D31: 1.8
A32: Dywidendy otrzymane | B32: Dividends received | C32: 4.7 | D32: 0.9
A33: Pozostałe wydatki | B33: Other expenses | C33: -0.1
A34: Środki pieniężne netto wykorzystane w działalności inwestycyjnej | B34: Net cash provided by (used in) investing activities | C34: -11.8 | D34: -11.2
A36: Przepływy środków pieniężnych z działalności finansowej | B36: Cash flows – financing activities
A37: Wypłacona dywidenda | B37: Dividend paid out | C37: 0 | D37: 0
A38: Wpływy z tytułu zaciągnięcia kredytów | B38: Proceeds from bank loans | C38: 0 | D38: 0
A39: Wydatki z tytułu spłaty kredytów | B39: Repayment of bank loans and borrowings | C39: -28 | D39: -3.7
A40: Dotacje otrzymane do zakupu środków trwałych lub/i projektów rozwojowych | B40: Subsidies received | C40: 0 | D40: 0
A41: Dotacje zwrócone | B41: Subsidies returned | C41: 0 | D41: 0
A42: Spłata zobowiązań z tytułu leasingu finansowego | B42: Finance lease liabilities paid | C42: -7.8 | D42: -5.3
A43: Zapłacone odsetki | B43: Interest paid | C43: -1.6 | D43: -1.7
A44: Środki pieniężne netto z działalności finansowej | B44: Net cash provided by (used in) financing activities | C44: -37.4 | D44: -10.7
A45: Zmiana netto stanu środków pieniężnych i ich ekwiwalentów | B45: Net change in cash and cash equivalents | C45: -17 | D45: -9.6
A46: Różnice kursowe netto | B46: Net foreign exchange differences | C46: 0.1 | D46: 0
A47: Środki pieniężne i ich ekwiwalenty na dzień 1 stycznia | B47: Cash and cash equivalents at 1 January | C47: 264.7 | D47: 308
A48: Środki pieniężne i ich ekwiwalenty na dzień 31 marca | B48: Cash and cash equivalents at 31 March | C48: 247.8 | D48: 298.4
C49: =C47+C46+C45-C48 -> 0 | D49: =D47+D46+D45-D48 -> 0
A51: Objaśnienia: | B51: Legend:
A52: [1] AT i WN - aktywów trwałych i wartości niematerialnych | B52: [1] FA and IA - fixed assets and intangible assets
A53: [2] Wpływy / wydatki ze sprzedaży aktywów finansowych wycenianych do wartości godziwej przez rachunek zysków i strat | B53: [2] Disposal / Purchase of financial assets carried at fair value through profit or loss
